bitfinex-derivatives/quotes_BTCF0:USTF0_20251214
["timestamp","ask_amount","ask_price","bid_price","bid_amount"]
[1765713463865,1.44168142,89386.0,89373.0,0.0001678]
[1765713464062,1.41333,89386.0,89373.0,0.0001678]
[1765713464268,0.02835735,89385.0,89373.0,0.0001678]
[1765713464571,0.71004,89386.0,89373.0,0.0001678]
[1765713464768,0.70329,89374.0,89373.0,0.6993278]
[1765713465070,1.41333,89386.0,89385.0,0.69916]
[1765713465270,1.44168638,89386.0,89385.0,0.69916]
[1765713465470,0.70329,89380.0,89379.0,0.69916]
[1765713465864,0.70329,89374.0,89373.0,0.6993278]
[1765713466863,0.70329,89374.0,89373.0,0.3502778]
[1765713467068,0.70329,89374.0,89373.0,0.0001678]
[1765713467463,0.34925,89374.0,89373.0,0.6993278]
[1765713467667,1.41333,89386.0,89385.0,0.69916]
[1765713467868,1.44171086,89386.0,89385.0,0.69916]
[1765713468169,1.44171086,89386.0,89373.0,0.0001678]
[1765713468370,0.02838086,89385.0,89373.0,0.0001678]
[1765713468870,0.02838086,89385.0,89384.0,0.69916]
[1765713469058,0.70329,89381.0,89380.0,1.05996]
[1765713469265,0.70329,89374.0,89373.0,0.6993278]
[1765713469466,1.41321,89387.0,89386.0,0.69916]
[1765713469667,1.44160091,89387.0,89386.0,0.69916]
[1765713474276,0.02839091,89387.0,89386.0,0.69916]
[1765713474580,0.05966594,89405.0,89389.0,0.69916]
[1765713474783,0.0285781,89390.0,89389.0,0.69916]
[1765713475080,0.7318681,89390.0,89389.0,0.69916]
[1765713475785,0.3778281,89390.0,89389.0,0.69916]
[1765713475977,0.7092881,89390.0,89389.0,0.69916]
[1765713476175,0.7092881,89390.0,89389.0,1.05996]
[1765713476373,0.0285781,89390.0,89389.0,1.05996]
[1765713479480,0.0001678,89390.0,89389.0,1.05996]
[1765713480677,0.6692378,89390.0,89389.0,1.05996]
[1765713480886,0.6692378,89390.0,89389.0,0.3608]
[1765713481186,0.66907,89385.0,89384.0,0.9013]
[1765713483304,0.66907,89381.0,89380.0,1.05885]
[1765713483881,0.6692378,89390.0,89389.0,0.69805]
[1765713484083,0.69764253,89390.0,89389.0,0.69805]
[1765713491094,0.02857253,89390.0,89389.0,0.69805]
[1765713491487,0.69764253,89390.0,89389.0,0.69805]
[1765713491889,0.3608,89401.0,89389.0,0.69805]
[1765713492189,0.05966594,89418.0,89408.0,0.90371]
[1765713492488,0.38920944,89409.0,89408.0,0.90371]
[1765713494492,0.02840944,89409.0,89408.0,0.90371]
[1765713496597,0.36601944,89409.0,89408.0,0.90371]
[1765713496794,0.69747944,89409.0,89408.0,0.90371]
[1765713498399,0.69747944,89409.0,89408.0,0.35327]
[1765713498599,0.69747944,89409.0,89408.0,0.90371]
[1765713498897,0.69747944,89409.0,89408.0,0.69805]
[1765713499493,0.69747944,89409.0,89400.0,0.91500413]
[1765713499494,0.66907,89401.0,89400.0,0.91500413]
[1765713500201,0.66907,89401.0,89400.0,0.9038778]
[1765713501106,0.66907,89401.0,89400.0,0.0001678]
[1765713501301,0.66907,89401.0,89400.0,0.6982178]
[1765713501805,0.69745251,89401.0,89400.0,0.6982178]
[1765713502795,0.69745251,89401.0,89400.0,0.0001678]
[1765713503192,0.69745251,89401.0,89400.0,0.6982178]
[1765713503408,0.02838251,89401.0,89400.0,0.9038778]
[1765713503701,1.02987,89413.0,89412.0,0.69805]
[1765713503902,1.05825863,89413.0,89412.0,0.69805]
[1765713507108,0.68518,89409.0,89408.0,0.35127]
[1765713507310,0.68518,89401.0,89400.0,0.9115878]
[1765713508208,1.04598,89413.0,89412.0,0.70576]
[1765713508409,1.07436596,89413.0,89412.0,0.70576]
[1765713509209,1.07436596,89413.0,89412.0,0.35127]
[1765713510208,0.68518,89409.0,89408.0,0.91277]
[1765713510410,0.71356596,89409.0,89408.0,0.91277]
[1765713511411,0.36120596,89409.0,89408.0,0.91277]
[1765713511608,0.71356596,89409.0,89408.0,0.91277]
[1765713511814,0.02838596,89409.0,89408.0,0.91277]
[1765713515013,0.71356596,89409.0,89408.0,0.91277]
[1765713515399,0.71356596,89409.0,89408.0,0.70576]
[1765713517612,0.71356596,89409.0,89408.0,0.91277]
[1765713519114,0.02838596,89409.0,89408.0,0.91277]
[1765713519511,0.36120596,89409.0,89408.0,0.91277]
[1765713519718,0.71356596,89409.0,89408.0,0.91277]
[1765713520015,0.71356596,89409.0,89408.0,0.70576]
[1765713520611,0.36125035,89409.0,89408.0,0.91277]
[1765713521112,0.02843035,89409.0,89408.0,0.91277]
[1765713521315,0.68518,89425.0,89424.0,0.35127]
[1765713521505,0.68518,89417.0,89416.0,1.0667278]
[1765713521706,0.7136191,89417.0,89416.0,1.0667278]
[1765713521911,0.7136191,89417.0,89416.0,1.2737378]
[1765713522713,0.39276571,89438.0,89437.0,0.70576]
[1765713522908,0.68518,89438.0,89436.0,0.35127]
[1765713523215,0.33282,89417.0,89416.0,1.2737378]
[1765713523404,1.04598,89429.0,89428.0,0.35127]
[1765713523818,1.04598,89429.0,89428.0,0.70576]
[1765713524207,0.68518,89429.0,89428.0,0.70576]
[1765713524507,1.04598,89439.0,89438.0,0.35127]
[1765713524810,1.04598,89439.0,89438.0,0.70576]
[1765713526011,1.04598,89439.0,89438.0,0.35127]
[1765713526216,1.04598,89439.0,89438.0,0.70576]
[1765713527911,0.68518,89425.0,89424.0,0.91277]
[1765713528320,0.3608,89439.0,89424.0,0.91277]
[1765713529024,1.04598,89439.0,89438.0,0.70576]
[1765713531110,0.3608,89439.0,89438.0,0.70576]
[1765713531322,0.69362,89439.0,89438.0,0.70576]
[1765713531722,0.3608,89439.0,89438.0,0.70576]
[1765713533022,0.71375043,89452.0,89438.0,0.70576]
[1765713533330,1.39893043,89452.0,89451.0,0.70576]
[1765713534416,0.69081043,89452.0,89451.0,0.70576]
[1765713534612,0.71901048,89452.0,89451.0,0.70576]
[1765713535715,0.71901048,89452.0,89451.0,0.35127]
[1765713535921,0.32545,89441.0,89440.0,0.88325]
[1765713536219,0.67995005,89441.0,89440.0,0.67624]
[1765713537719,0.02820005,89441.0,89440.0,0.87472]
[1765713539016,0.35365005,89441.0,89440.0,0.87472]
[1765713539211,0.67995005,89441.0,89440.0,0.67624]
[1765713539414,0.65175,89437.0,89436.0,0.3470777]
[1765713539613,0.65175,89437.0,89436.0,0.6764077]
[1765713541116,0.3608,89445.0,89444.0,0.67624]
[1765713541324,0.65175,89457.0,89456.0,0.34691]
[1765713541516,0.65175,89457.0,89442.0,0.3608]
[1765713541517,0.65175,89443.0,89442.0,0.67624]
[1765713542225,0.65175,89437.0,89436.0,0.6764077]
[1765713542925,0.32545,89437.0,89436.0,0.6764077]
[1765713543223,0.65175,89437.0,89436.0,0.6764077]
[1765713543413,0.65175,89437.0,89436.0,0.0001677]
[1765713543609,0.67994525,89437.0,89436.0,0.0001677]
[1765713544419,0.65175,89432.0,89431.0,1.03704]
[1765713544628,0.67994525,89432.0,89431.0,1.03704]
[1765713544813,0.67994525,89432.0,89431.0,0.67624]
[1765713546624,0.65175,89425.0,89424.0,0.87472]
[1765713547131,0.65175,89425.0,89424.0,0.67624]
[1765713548017,0.00016736,89440.0,89432.0,0.19848]
[1765713548226,0.00016736,89440.0,89439.0,1.39784]
[1765713548419,0.86628736,89440.0,89439.0,0.67624]
[1765713548615,0.89451564,89440.0,89439.0,0.34691]
[1765713549018,0.89451564,89440.0,89425.0,0.3608]
[1765713549019,0.65175,89437.0,89436.0,1.03704]
[1765713549217,0.67997828,89437.0,89436.0,1.03704]
[1765713549417,0.00016736,89440.0,89439.0,0.67624]
[1765713549634,0.6801546,89440.0,89439.0,0.67624]
[1765713550129,0.65175,89437.0,89436.0,0.3608]
[1765713550430,0.00016736,89440.0,89439.0,0.67624]
[1765713550625,0.00016736,89440.0,89439.0,1.03704]
[1765713550822,0.2200753,89469.0,89439.0,1.03704]
[1765713551030,0.65175,89463.0,89462.0,1.03704]
[1765713551324,0.65175,89455.0,89454.0,0.70771]
[1765713551530,0.68000594,89455.0,89454.0,1.03704]
[1765713552433,0.02825594,89455.0,89454.0,1.03704]
[1765713553033,0.02825594,89455.0,89454.0,1.39784]
[1765713553228,0.65175,89472.0,89471.0,0.32933]
[1765713553537,0.65175,89472.0,89471.0,1.00557]
[1765713555932,0.32545,89472.0,89471.0,1.00557]
[1765713556125,0.65175,89477.0,89476.0,0.67624]
[1765713556330,1.35923,89477.0,89476.0,0.67624]
[1765713557035,0.65175,89477.0,89476.0,0.67624]
[1765713558138,0.32545,89477.0,89476.0,0.67624]
[1765713558346,0.65175,89477.0,89476.0,0.67624]
[1765713559028,0.65175,89477.0,89476.0,0.34691]
[1765713559229,0.65175,89475.0,89474.0,0.3608]
[1765713559427,0.65175,89464.0,89463.0,0.6764077]
[1765713562624,0.65175,89464.0,89463.0,0.0001677]
[1765713565337,0.65175,89458.0,89457.0,0.3608]
[1765713565537,0.68004513,89458.0,89457.0,0.3608]
[1765713566538,0.64957,89450.0,89449.0,0.0001677]
[1765713566747,1.38506513,89450.0,89449.0,0.0001677]
[1765713568242,0.02829513,89450.0,89449.0,0.6950777]
[1765713568441,0.67865,89458.0,89457.0,0.69491]
[1765713568746,0.7069555,89458.0,89457.0,1.05571]
[1765713569340,0.0283055,89458.0,89457.0,1.05571]
[1765713570541,0.3599755,89458.0,89457.0,1.05571]
[1765713571642,0.0283055,89458.0,89457.0,1.05571]
[1765713573357,0.0001677,89466.0,89465.0,0.69491]
[1765713573564,0.0001677,89466.0,89465.0,1.05571]
[1765713574062,0.67865,89489.0,89488.0,0.69491]
[1765713574262,0.67865,89485.0,89484.0,0.69748]
[1765713574555,0.706978,89485.0,89484.0,0.3608]
[1765713576660,0.706978,89485.0,89484.0,0.69748]
[1765713576852,0.706978,89485.0,89484.0,0.3608]
[1765713577450,0.67865,89477.0,89476.0,0.0001677]
[1765713577664,0.67865,89470.0,89469.0,0.3608]
[1765713578161,0.70697932,89470.0,89469.0,0.3608]
[1765713578360,0.70697932,89470.0,89469.0,0.33471775]
[1765713578561,0.67865,89454.0,89453.0,0.3608]
[1765713578957,0.7069744,89454.0,89453.0,0.3608]
[1765713579558,0.67865,89446.0,89445.0,0.0001677]
[1765713579859,0.7069744,89446.0,89445.0,0.0001677]
[1765713582259,0.7089744,89446.0,89445.0,0.0001677]
[1765713582964,0.7069744,89446.0,89445.0,0.0001677]
[1765713583166,0.7099744,89446.0,89445.0,0.0001677]
[1765713584667,0.7089744,89446.0,89445.0,0.0001677]
[1765713586266,0.7069744,89446.0,89445.0,0.0001677]
[1765713586467,0.7089744,89446.0,89445.0,0.0001677]
[1765713588067,0.7089744,89446.0,89432.0,0.3608]
[1765713588270,0.89416,89433.0,89432.0,0.3608]
[1765713589571,0.89516,89433.0,89432.0,0.3608]
[1765713591268,0.89516,89433.0,89432.0,1.05571]
[1765713591565,1.60212,89433.0,89432.0,1.05571]
[1765713591869,1.38661,89433.0,89432.0,1.05571]
[1765713592054,1.03963,89433.0,89432.0,1.22907]
[1765713592469,1.03963,89433.0,89432.0,1.05571]
[1765713594663,0.67965,89433.0,89432.0,0.3608]
[1765713597368,0.67333,89429.0,89424.0,0.4501477]
[1765713597566,0.67333,89429.0,89424.0,0.0893477]
[1765713597764,0.70166875,89429.0,89424.0,0.0001677]
[1765713597973,0.19596,89424.0,89395.0,0.3608]
[1765713598170,0.70097,89401.0,89400.0,0.70117]
[1765713598574,0.70097,89401.0,89395.0,0.3608]
[1765713598575,0.70097,89406.0,89405.0,0.70117]
[1765713598774,0.70097,89406.0,89405.0,1.06197]
[1765713598973,0.70106433,89406.0,89405.0,1.06197]
[1765713599274,0.90792433,89406.0,89405.0,1.06197]
[1765713599665,0.70106433,89406.0,89405.0,1.06197]
[1765713600575,0.35940433,89406.0,89405.0,1.06197]
[1765713600975,0.36140433,89406.0,89405.0,1.06197]
[1765713601174,0.00209433,89406.0,89405.0,1.06197]
[1765713602277,0.70306433,89406.0,89405.0,1.06197]
[1765713602781,0.70097,89398.0,89397.0,0.0893677]
[1765713602967,0.70097,89398.0,89397.0,0.7905377]
[1765713603274,0.70306433,89406.0,89405.0,0.70117]
[1765713603468,0.00209433,89406.0,89405.0,0.70117]
[1765713603771,0.00209433,89406.0,89397.0,0.5575977]
[1765713603772,0.70097,89398.0,89397.0,0.0001677]
[1765713604072,0.70097,89380.0,89379.0,1.06197]
[1765713604279,0.70107133,89380.0,89379.0,1.06197]
[1765713604974,0.35931,89371.0,89370.0,0.70117]
[1765713605664,0.90783,89379.0,89378.0,0.34677]
[1765713606370,0.90783,89379.0,89378.0,0.70117]
[1765713606874,0.00110133,89380.0,89379.0,0.70117]
[1765713607073,0.00110133,89380.0,89376.0,0.3608]
[1765713607074,0.70097,89377.0,89376.0,0.3608]
[1765713607271,0.70097,89377.0,89371.0,0.08923]
[1765713607272,0.70097,89372.0,89371.0,0.436]
[1765713607471,0.70097,89372.0,89371.0,0.7904]
[1765713608175,0.70097,89372.0,89371.0,0.08923]
[1765713608377,0.70097,89372.0,89371.0,0.09223]
[1765713608780,0.70097,89372.0,89357.0,0.00012881]
[1765713608781,0.7121594,89363.0,89357.0,0.00012881]
[1765713608974,1.10121313,89363.0,89357.0,0.00012881]
[1765713609176,0.70097,89363.0,89362.0,0.7013378]
[1765713609570,0.70097,89363.0,89362.0,0.0001678]
[1765713609770,0.70097,89363.0,89335.0,0.3608]
[1765713609771,0.0111903,89356.0,89335.0,0.3608]
[1765713609976,0.20686,89350.0,89335.0,0.3608]
[1765713610375,0.90783,89350.0,89349.0,0.34677]
[1765713610576,0.70097,89336.0,89335.0,1.06197]
[1765713610777,0.70110077,89336.0,89335.0,0.70117]
[1765713611278,0.00013077,89336.0,89335.0,1.06197]
[1765713611477,0.70110077,89336.0,89327.0,0.00016789]
[1765713611781,0.70097,89328.0,89327.0,1.06213789]
[1765713612079,0.00013077,89336.0,89335.0,0.70117]
[1765713612274,0.00613077,89336.0,89335.0,1.06197]
[1765713612471,0.70710077,89336.0,89335.0,0.70117]
[1765713612670,0.00613077,89336.0,89335.0,1.06197]
[1765713613582,0.00313077,89336.0,89335.0,1.06197]
[1765713613777,0.00013077,89336.0,89335.0,1.06197]
[1765713614471,0.00016789,89344.0,89343.0,0.70117]
[1765713614675,0.00016789,89344.0,89343.0,1.06197]
[1765713615277,1.06177,89363.0,89362.0,0.70117]
[1765713615476,1.073075,89363.0,89351.0,0.3608]
[1765713615678,0.0111899,89359.0,89343.0,0.3608]
[1765713616084,0.3609156,89363.0,89362.0,0.70117]
[1765713616480,1.0618856,89363.0,89362.0,0.70117]
[1765713616781,1.0618856,89363.0,89362.0,0.34677]
[1765713616969,1.0618856,89363.0,89354.0,0.00016789]
[1765713617776,1.0618856,89363.0,89354.0,0.34693789]
[1765713617777,0.70097,89355.0,89354.0,0.34693789]
[1765713617977,0.70097,89355.0,89354.0,0.34793789]
[1765713618378,0.70097,89355.0,89354.0,0.70233789]
[1765713618888,0.70097,89355.0,89354.0,0.70333789]
[1765713620089,0.70097,89355.0,89354.0,0.70433789]
[1765713620382,0.70097,89355.0,89354.0,0.35093789]
[1765713620780,1.09013523,89355.0,89354.0,0.00416789]
[1765713621181,1.79729523,89355.0,89354.0,0.00416789]
[1765713621387,1.79741083,89355.0,89354.0,0.00416789]
[1765713621584,0.90783,89342.0,89341.0,0.34677]
[1765713621781,0.0111911,89349.0,89341.0,0.34677]
[1765713621782,0.70097,89353.0,89352.0,0.70117]
[1765713621985,0.70097,89353.0,89342.0,0.19663]
[1765713621986,0.0111913,89348.0,89333.0,0.3608]
[1765713622294,0.20686,89353.0,89333.0,0.3608]
[1765713622593,0.0111909,89351.0,89334.0,0.00016789]
[1765713622788,0.0111911,89349.0,89334.0,0.00016789]
[1765713623191,0.02838875,89348.0,89334.0,0.00016789]
[1765713623389,0.00016789,89352.0,89334.0,0.00016789]
[1765713623591,0.02839087,89351.0,89341.0,0.3608]
[1765713623790,0.38770087,89350.0,89342.0,0.19663]
[1765713623986,0.35931,89342.0,89341.0,0.3608]
[1765713624184,0.35931,89342.0,89341.0,1.06197]
[1765713624882,0.70097,89350.0,89349.0,0.34677]
[1765713625195,0.72937718,89350.0,89349.0,0.34677]
[1765713626785,0.00016789,89352.0,89351.0,0.70083]
[1765713627097,0.02863673,89352.0,89351.0,0.70083]
[1765713627592,0.0001156,89355.0,89354.0,0.70083]
[1765713627783,0.3608,89374.0,89373.0,0.70083]
[1765713627989,0.69961,89379.0,89378.0,0.70083]
[1765713628191,0.02847172,89379.0,89378.0,0.70083]
[1765713628393,0.85308,89375.0,89374.0,0.34596]
[1765713628693,0.35856,89367.0,89366.0,1.06179789]
[1765713628891,0.72808172,89367.0,89366.0,0.00016789]
[1765713629198,0.73927062,89367.0,89366.0,0.00016789]
[1765713629387,1.44643062,89367.0,89366.0,0.00016789]
[1765713630190,0.68597,89352.0,89351.0,0.004]
[1765713630389,0.71444172,89352.0,89351.0,0.002]
[1765713630793,0.71444172,89352.0,89343.0,0.3608]
[1765713630995,0.14205,89353.0,89343.0,0.3608]
[1765713630996,0.02847172,89351.0,89343.0,0.3608]
[1765713631298,0.69337172,89350.0,89349.0,0.33387]
[1765713631702,0.6649,89344.0,89343.0,1.02712]
[1765713631887,0.36596172,89344.0,89343.0,1.02712]
[1765713632993,0.02847172,89344.0,89343.0,1.02712]
[1765713633295,0.002,89351.0,89343.0,1.02712]
[1765713633492,0.02847172,89350.0,89343.0,1.02712]
[1765713633695,0.6649,89344.0,89343.0,1.02712]
[1765713633890,0.69337172,89344.0,89343.0,1.03212]
[1765713634298,0.69337172,89344.0,89343.0,1.03012]
[1765713634502,0.69337172,89344.0,89343.0,1.03112]
[1765713634699,0.69337172,89344.0,89343.0,0.003]
[1765713634892,0.75279139,89344.0,89343.0,0.003]
[1765713635087,0.75279139,89344.0,89343.0,0.33687]
[1765713635293,0.75279139,89344.0,89343.0,0.003]
[1765713636093,0.69337172,89344.0,89343.0,0.003]
[1765713636300,0.02847172,89344.0,89343.0,0.66932]
[1765713636499,0.05963929,89346.0,89345.0,0.66632]
[1765713636699,0.05963929,89346.0,89345.0,1.02712]
[1765713636900,0.6649,89351.0,89350.0,0.66632]
[1765713637103,0.69351308,89351.0,89350.0,0.66632]
[1765713637508,0.69351308,89351.0,89343.0,0.002]
[1765713637509,0.6649,89344.0,89343.0,0.002]
[1765713637697,0.69351308,89344.0,89343.0,0.002]
[1765713638002,0.69351308,89344.0,89343.0,0.66732]
[1765713638199,0.69351308,89344.0,89343.0,0.66632]
[1765713638498,0.6649,89339.0,89338.0,0.33403789]
[1765713638705,0.6649,89339.0,89338.0,0.66648789]
[1765713638706,0.69351308,89339.0,89338.0,0.66648789]
[1765713639398,0.8765,89320.0,89319.0,0.3608]
[1765713639603,0.02861308,89320.0,89319.0,0.66632]
[1765713639795,0.33749,89324.0,89323.0,0.66632]
[1765713639994,0.36612557,89324.0,89323.0,0.66632]
[1765713640401,0.69353557,89324.0,89323.0,0.66632]
[1765713640596,0.69353557,89324.0,89315.0,0.00011215]
[1765713640597,0.6649,89316.0,89315.0,0.00011215]
[1765713640796,1.05433557,89316.0,89315.0,0.00011215]
[1765713641397,1.76141557,89316.0,89315.0,0.00011215]
[1765713641993,1.76141557,89316.0,89296.0,0.69467]
[1765713641994,0.6649,89297.0,89296.0,0.69467]
[1765713642194,0.6649,89289.0,89288.0,0.66645173]
[1765713642505,0.02863557,89289.0,89288.0,0.66645173]
[1765713643205,0.00016799,89297.0,89296.0,0.66632]
[1765713643407,0.00016799,89297.0,89296.0,1.02712]
[1765713643408,0.02863601,89297.0,89296.0,1.02712]
[1765713644213,0.3608,89324.0,89323.0,0.66632]
[1765713644414,0.33749,89312.0,89311.0,0.66632]
[1765713644706,0.6649,89312.0,89298.0,0.19399]
[1765713645110,0.6649,89312.0,89311.0,0.66632]
[1765713645306,0.00016799,89314.0,89313.0,0.66632]
[1765713645808,0.3608,89324.0,89311.0,0.3608]
[1765713645809,0.3608,89324.0,89323.0,0.66632]
[1765713646598,0.3608,89324.0,89323.0,0.66832]
[1765713646906,0.6760934,89331.0,89330.0,0.33387]
[1765713647098,0.00016799,89332.0,89331.0,0.86085]
[1765713647597,0.05954274,89350.0,89349.0,0.66632]
[1765713647598,0.33749,89350.0,89349.0,0.66632]
[1765713647800,0.33749,89350.0,89349.0,1.02712]
[1765713648105,0.6649,89350.0,89349.0,0.69467]
[1765713649411,0.6649,89350.0,89349.0,0.3608]
[1765713649713,0.6679,89350.0,89349.0,1.02712]
[1765713649904,0.6679,89350.0,89349.0,1.02812]
[1765713650105,1.37506,89350.0,89349.0,1.02812]
[1765713650304,1.37206,89350.0,89349.0,0.66732]
[1765713650704,1.37206,89350.0,89341.0,0.3609679]
[1765713650907,1.37206,89350.0,89349.0,0.001]
[1765713652317,0.8765,89342.0,89341.0,0.3609679]
[1765713652509,0.887692,89342.0,89341.0,0.3619679]
[1765713653516,0.887692,89342.0,89341.0,0.0011679]
[1765713653716,0.888692,89342.0,89341.0,0.0001679]
[1765713655415,1.595772,89342.0,89341.0,1.0272879]
[1765713656212,1.62411258,89342.0,89341.0,0.6948379]
[1765713656410,1.62311258,89342.0,89341.0,0.3619679]
[1765713656715,1.62311258,89342.0,89341.0,0.0011679]
[1765713657103,0.7005532,89332.0,89331.0,0.3608]
[1765713657311,1.43597378,89332.0,89331.0,0.3608]
[1765713658312,0.7005543,89324.0,89323.0,0.0001679]
[1765713658516,0.72889488,89324.0,89323.0,0.0001679]
[1765713659017,0.0111959,89312.0,89301.0,0.3608]
[1765713659217,0.20571,89309.0,89301.0,0.3608]
[1765713659516,0.20571,89309.0,89308.0,0.71387]
[1765713659517,0.89507,89309.0,89308.0,0.71387]
[1765713659815,0.58954677,89309.0,89308.0,0.71387]
[1765713660015,0.58954677,89309.0,89301.0,0.3608]
[1765713660016,0.70704,89311.0,89310.0,0.71387]
[1765713660219,1.09087813,89311.0,89310.0,0.71387]
[1765713660907,0.02834813,89311.0,89310.0,0.71387]
[1765713661106,0.02834813,89311.0,89309.0,0.3608]
[1765713661107,0.0001679,89317.0,89316.0,0.71387]
[1765713661517,0.0001679,89317.0,89316.0,0.35611]
[1765713661518,0.6895279,89317.0,89316.0,0.35611]
[1765713661726,0.6895279,89317.0,89311.0,0.3608]
[1765713661727,0.68936,89312.0,89311.0,0.71691]
[1765713662022,0.68936,89312.0,89311.0,0.3608]
[1765713663019,0.69136,89312.0,89311.0,0.3608]
[1765713663222,0.71970498,89312.0,89311.0,0.71691]
[1765713663417,0.72270498,89312.0,89311.0,0.3608]
[1765713664323,0.72370498,89312.0,89311.0,0.3608]
[1765713665526,0.72470498,89312.0,89311.0,0.3608]
[1765713666229,0.72470498,89312.0,89311.0,1.07467]
[1765713666230,0.39083498,89312.0,89311.0,1.07467]
[1765713666426,1.09791498,89312.0,89311.0,1.07467]
[1765713666623,0.007,89312.0,89311.0,1.07467]
[1765713669322,0.69636,89312.0,89311.0,0.3608]
[1765713670119,0.72471818,89312.0,89311.0,0.3608]
[1765713672329,0.7005568,89304.0,89303.0,0.3608]
[1765713672529,1.4075968,89304.0,89303.0,0.3608]
[1765713672730,1.06253,89304.0,89303.0,1.07467]
[1765713673828,1.06253,89304.0,89303.0,0.71691]
[1765713674134,1.06453,89304.0,89303.0,0.3608]
[1765713674525,1.06653,89304.0,89303.0,0.3608]
[1765713674832,1.09472789,89304.0,89303.0,0.3608]
[1765713675125,0.68936,89301.0,89300.0,0.0001679]
[1765713675332,1.07835437,89301.0,89300.0,0.0001679]
[1765713675726,1.78539437,89301.0,89300.0,0.7140379]
[1765713676431,1.78639437,89301.0,89300.0,0.7140379]
[1765713676622,1.78739437,89301.0,89300.0,0.7140379]
[1765713677529,1.42659437,89301.0,89300.0,1.0748379]
[1765713679230,1.42659437,89301.0,89300.0,0.3609679]
[1765713679730,1.42659437,89301.0,89282.0,0.3608]
[1765713679731,0.68936,89289.0,89282.0,0.3608]
[1765713679930,1.39644,89289.0,89282.0,0.3608]
[1765713680125,1.4076386,89289.0,89282.0,0.3608]
[1765713680933,1.4076386,89289.0,89288.0,0.00113173]
[1765713681233,1.43582705,89289.0,89288.0,0.00113173]
[1765713681632,1.43882705,89289.0,89288.0,0.00013173]
[1765713682338,1.44182705,89289.0,89288.0,0.00013173]
[1765713682633,1.80262705,89289.0,89288.0,0.00013173]
[1765713683134,0.7005605,89274.0,89271.0,0.3608]
[1765713683332,1.4076405,89274.0,89271.0,0.3608]
[1765713683737,0.68936,89272.0,89271.0,0.3608]
[1765713684241,0.20571,89270.0,89254.0,1.5]
[1765713684440,0.35549,89255.0,89254.0,1.5]
[1765713684641,0.00011897,89255.0,89254.0,1.5]
[1765713685931,0.00011897,89255.0,89254.0,1.501]
[1765713686943,0.00011897,89255.0,89254.0,1.502]
[1765713687536,0.68390897,89255.0,89254.0,1.502]
[1765713687737,0.68490897,89255.0,89254.0,0.34553]
[1765713688038,0.68490897,89255.0,89254.0,0.34453]
[1765713688234,0.00111897,89255.0,89254.0,2.17621]
[1765713688634,0.69221897,89255.0,89254.0,1.84453]
[1765713690546,0.00111897,89255.0,89254.0,1.84453]
[1765713690847,0.70823897,89255.0,89254.0,1.84453]
[1765713691147,0.69221897,89255.0,89254.0,1.84453]
[1765713691348,0.00111897,89255.0,89254.0,1.84453]
[1765713694549,0.0112013,89268.0,89267.0,0.67609]
[1765713695544,0.47884,89269.0,89268.0,0.67609]
[1765713695750,0.11804,89269.0,89268.0,0.67609]
[1765713696147,0.8203411,89269.0,89268.0,0.67609]
[1765713696842,0.8203411,89269.0,89268.0,0.68009]
[1765713698150,0.84852069,89269.0,89268.0,0.68509]
[1765713698534,1.09128069,89269.0,89268.0,0.009]
[1765713704958,0.6911,89255.0,89254.0,1.5]
[1765713705160,1.78719959,89255.0,89254.0,1.5]
[1765713706050,1.78819959,89255.0,89254.0,1.5]
[1765713706351,0.2263336,89250.0,89239.0,0.3608]
[1765713706554,0.9174336,89250.0,89249.0,0.67609]
[1765713706743,0.93434998,89250.0,89249.0,2.17609]
[1765713707548,0.71921998,89250.0,89249.0,2.17609]
[1765713707749,0.02811998,89250.0,89249.0,2.17609]
[1765713708160,0.02811998,89250.0,89249.0,2.53689]
[1765713709650,0.03011998,89250.0,89249.0,2.53689]
[1765713710361,0.72121998,89250.0,89249.0,2.53689]
[1765713710749,0.72121998,89250.0,89249.0,2.17609]
[1765713712364,0.03011998,89250.0,89249.0,2.17609]
[1765713712560,0.03011998,89250.0,89249.0,2.53689]
[1765713714352,0.05954274,89266.0,89264.0,0.67609]
[1765713714556,0.90639799,89271.0,89270.0,0.67609]
[1765713714851,0.00016799,89271.0,89270.0,0.67609]
[1765713715049,0.00016799,89271.0,89270.0,0.87944]
[1765713717656,0.00416799,89271.0,89270.0,0.87944]
[1765713718061,0.00016799,89271.0,89270.0,0.88344]
[1765713718251,0.00016799,89271.0,89270.0,0.88644]
[1765713719154,0.73050274,89290.0,89289.0,0.80244]
[1765713719358,0.3588884,89291.0,89290.0,0.69113]
[1765713719555,0.0111984,89291.0,89290.0,0.69113]
[1765713719860,0.7049084,89291.0,89290.0,0.69113]
[1765713720263,0.7049094,89283.0,89282.0,0.33557799]
[1765713720452,1.0657094,89283.0,89282.0,0.00016799]
[1765713720959,1.0657094,89283.0,89263.0,0.69113]
[1765713720960,0.7049118,89264.0,89263.0,0.69113]
[1765713721458,0.19614,89271.0,89258.0,0.3608]
[1765713721459,0.69371,89259.0,89258.0,0.69621]
[1765713721650,0.88985,89250.0,89249.0,1.8608]
[1765713722560,0.34769,89250.0,89249.0,1.8608]
[1765713722864,0.69371,89255.0,89254.0,0.69113]
[1765713724261,0.69571,89255.0,89254.0,0.69113]
[1765713724762,0.88985,89250.0,89249.0,1.5]
[1765713725752,0.88985,89250.0,89231.0,0.3608]
[1765713725753,0.69371,89238.0,89237.0,0.69113]
[1765713726256,0.69371,89238.0,89237.0,2.19113]
[1765713726562,0.69371,89232.0,89231.0,0.3608]
[1765713726763,0.69371,89224.0,89223.0,0.69113]
[1765713727065,0.69371,89224.0,89223.0,2.19113]
[1765713727764,1.05451,89229.0,89228.0,0.69113]
[1765713730260,1.05551,89229.0,89228.0,0.69113]
[1765713731760,1.0667162,89229.0,89228.0,0.69113]
[1765713732357,1.0667162,89229.0,89223.0,1.5]
[1765713732358,0.7049168,89224.0,89223.0,1.5]
[1765713732854,0.69371,89224.0,89223.0,1.5]
[1765713733450,0.69371,89224.0,89223.0,1.501]
[1765713734754,0.69371,89224.0,89223.0,0.001]
[1765713735064,0.69371,89221.0,89220.0,0.00013959]